Cogmind - Beta 13 @@@ ROGUE MODE // 2024.03.02 @ 18:21:53 Player: Baxter Result: Self-destructed Performance ------------- Evolutions (1) 500 Regions Visited (3) 600 Robots Destroyed (20) 100 Value Destroyed (535) 535 Prototype IDs (1) 20 Alien Tech Used (0) 0 Bonus (28) 28 TOTAL SCORE: 1783 Bonus ------- Follower Combat Kills 28 Cogmind --------- Core Integrity 400/400 Matter 261/300 Energy 250/250 System Corruption 0% Temperature Cool (0) Movement Treading (160) Location -9/Materials Parts ------- > --- POWER (1) -------- Ion Engine > --- PROPULSION (3) --- Light Treads Aluminum Leg Aluminum Leg > --- UTILITY (3) ------ Medium Storage Unit Sensor Array Signal Interpreter > --- WEAPON (2) ------- Assault Rifle Mining Laser > --- INVENTORY (10) --- Ion Engine Ion Engine Ion Engine Aluminum Leg Aluminum Leg High-capacity Matter Pod (57) Medium Armor Plating Medium Armor Plating Grenade Launcher Peak State ------------ > --- POWER ------------ Ion Engine > --- PROPULSION ------- Aluminum Leg Aluminum Leg > --- UTILITY ---------- Medium Storage Unit Experimental Sensor Array Signal Interpreter > --- WEAPON ----------- Assault Rifle Assault Rifle > --- INVENTORY -------- Ion Engine Ion Engine Ion Engine Light Treads Aluminum Leg Aluminum Leg High-capacity Matter Pod Grenade Launcher Mining Laser [Rating: 16] Favorites ----------- Power Ion Engine Engine Ion Engine Propulsion Aluminum Leg Treads Light Treads Leg Aluminum Leg Wheel Compact Wheel Utility Medium Storage Unit Device Sensor Array Storage Medium Storage Unit Processor Signal Interpreter Protection Light Armor Plating Weapon Assault Rifle Ballistic Gun Assault Rifle Launcher Grenade Launcher Special Weapon Mining Laser Build | -11 -10 -10 -9 ------- Run | Yrd Mat Min Mat Slots Evolved 2 | . . . 2 Power . | . . . . Propulsion 1 | . . . 1 Utility 1 | . . . 1 Weapon . | . . . . Parts Attached 33 | 7 13 8 5 Power 3 | 1 2 . . Engine 3 | 1 2 . . Core . | . . . . Reactor . | . . . . Propulsion 12 | 3 4 3 2 Treads 2 | 1 . . 1 Leg 6 | . 2 3 1 Wheel 4 | 2 2 . . Hover . | . . . . Flight . | . . . . Utility 6 | 1 3 . 2 Device 2 | . . . 2 Storage 2 | 1 1 . . Processor 1 | . 1 . . Hackware . | . . . . Protection 1 | . 1 . . Artifact . | . . . . Weapon 12 | 2 4 5 1 Energy Gun . | . . . . Energy Cannon . | . . . . Ballistic Gun 8 | 2 3 3 . Ballistic Cannon . | . . . . Launcher 1 | . . 1 . Special Weapon 3 | . 1 1 1 Impact Weapon . | . . . . Slashing Weapon . | . . . . Piercing Weapon . | . . . . Special Melee Weapon . | . . . . Unidentified Prototypes 1 | . . . 1 Parts Lost 3 | . 3 . . Power 1 | . 1 . . Propulsion 1 | . 1 . . Utility 1 | . 1 . . Weapon . | . . . . Highest Loss Streak 1 | . 1 . . To Critical Strikes . | . . . . Average Slot Usage (%) 98 | . 97 100 89 Engine 13 | . 13 14 11 Treads 4 | . 12 . 3 Leg 19 | . 3 28 28 Wheel 4 | . 11 . . Storage 13 | . 14 14 11 Processor 9 | . 3 14 11 Protection 3 | . 9 . . Ballistic Gun 26 | . 27 27 12 Naked Turns . | . . . . Heaviest Build 21 | 13 21 20 19 Greatest Support 30 | 20 20 20 30 Greatest Overweight (x) 5 | 1 5 . . Average Overweight (x) . | . . . . Largest Inventory Capacity 10 | 8 10 10 10 Average Capacity 9 | 7 9 10 10 Most Carried 10 | 7 10 10 10 Average Carried 9 | 4 9 9 8 Final Capacity 10 | 8 10 10 10 Final Carried 10 | 6 10 10 9 Class Distribution -------------------- 100% | Mutant Dominant Class ---------------- Mutant | -10/Materials Mutant | -10/Mines Mutant | -9/Materials Resources | -11 -10 -10 -9 ----------- Run | Yrd Mat Min Mat Matter Collected 953 | 286 398 240 29 Remotely . | . . . . Salvage Created 756 | 96 463 157 40 Parts 36 | 1 23 11 1 Haulers Intercepted 1 | . 1 . . Recyclers Shooed 1 | . . 1 . Parts Field Recycled . | . . . . Retrieved Matter . | . . . . Parts Self-Destructed . | . . . . Prevented . | . . . . Kills | -11 -10 -10 -9 ------- Run | Yrd Mat Min Mat Combat Hostiles Destroyed 17 | . 10 5 2 Guns 14 | . 10 2 2 AOE 3 | . . 3 . Classes Destroyed 5 | 1 2 2 . Tunneler 1 | . . 1 . Hauler 1 | . 1 . . Recycler 1 | 1 . . . Swarmer 5 | . . 3 2 Grunt 12 | . 10 2 . Best Kill Streak 3 | 1 3 3 2 Combat Bots Only 3 | . 3 3 2 Max Kills in Single Turn 2 | 1 1 2 1 Gunslinging . | . . . . Exploded 2 | . . 2 . Melee . | . . . . Uniques/NPCs Destroyed . | . . . . Combat | -11 -10 -10 -9 -------- Run | Yrd Mat Min Mat Hostile Shots Fired 100 | . 83 9 8 Missed 26 | . 22 3 1 Damage Taken 971 | . 842 75 54 Core 213 | . 199 14 . Absorbed by Shields . | . . . . Core Remaining (%) 57 | 100 . 14 . Volleys Fired 107 | 4 80 12 11 Largest 2 | 2 2 2 2 Hottest 120 | 40 40 100 120 Shots Fired 199 | 8 158 21 12 Gun 188 | 8 156 18 6 Cannon . | . . . . Launcher 2 | . . 2 . Special 9 | . 2 1 6 Kinetic 188 | 8 156 18 6 Thermal 9 | . 2 1 6 Explosive 2 | . . 2 . Electromagnetic . | . . . . Robot Hit Streak 11 | 3 11 7 2 Robot Miss Streak 5 | 1 5 2 1 Penetration Max . | . . . . Secondary Targets 1 | . 1 . . Max Gunslinging Chain 1 | . 1 . . Shots Hit Robots 122 | 5 100 14 3 Core Hits 49 | 3 30 14 2 Critical Kills . | . . . . Critical Parts Destroyed 1 | . 1 . . Critical Strikes 1 | . 1 . . Destroy 1 | . 1 . . Melee Attacks . | . . . . Impact . | . . . . Slashing . | . . . . Piercing . | . . . . Sneak Attacks . | . . . . Combat Hostiles . | . . . . Follow-up Attacks . | . . . . Damage Inflicted 1409 | 47 1019 305 38 Guns 1263 | 47 1019 159 38 Cannons . | . . . . Explosions 146 | . . 146 . Melee . | . . . . Ramming . | . . . . Kinetic 1263 | 47 1019 159 38 Thermal . | . . . . Explosive 146 | . . 146 . Electromagnetic . | . . . . Impact . | . . . . Slashing . | . . . . Piercing . | . . . . Highest Corruption . | . . . . Average Corruption . | . . . . Corruption Purged . | . . . . Corruption Blocked . | . . . . Overload Shots . | . . . . Overflow Damage . | . . . . Projectiles . | . . . . Explosions . | . . . . Melee . | . . . . Knockbacks . | . . . . Impact . | . . . . Kinetic . | . . . . Secondary . | . . . . Self-Inflicted Damage . | . . . . Shots . | . . . . Rammed . | . . . . Targets Rammed . | . . . . Kicked . | . . . . Crushed . | . . . . Highest Temperature 37 | . 37 20 24 Average Temperature 8 | . 8 6 8 Received Heat Transfer 474 | . 432 42 . Siege Activations . | . . . . Robots Corrupted . | . . . . Combat Hostiles . | . . . . Parts Fried . | . . . . Impact Corruptions . | . . . . Robots Melted . | . . . . Combat Hostiles . | . . . . Parts Melted . | . . . . Heat Transferred . | . . . . Parts Sabotaged . | . . . . Parts Stolen . | . . . . Parts Stripped . | . . . . Power Chain Reactions . | . . . . Alert | -11 -10 -10 -9 ------- Run | Yrd Mat Min Mat Peak Influence 136 | 5 118 136 126 Initial 39 | . 3 . 39 Average 38 | 1 39 36 63 Maximum Alert Level . | . . . . Low Security (%) 100 | 100 100 100 100 Level 1 . | . . . . Level 2 . | . . . . Level 3 . | . . . . Level 4 . | . . . . Level 5 . | . . . . High Security . | . . . . Max Security . | . . . . Squads Dispatched 5 | . 4 . 1 Investigation 2 | . 2 . . Extermination . | . . . . Reinforcement 3 | . 2 . 1 Assault . | . . . . Garrison . | . . . . Intercept . | . . . . Searches Triggered . | . . . . Construction Impeded . | . . . . Haulers Reinforced . | . . . . Active Scanning Responses . | . . . . Cargo Convoy Interrupts . | . . . . Stealth | -11 -10 -10 -9 --------- Run | Yrd Mat Min Mat Distress Signals 6 | . 3 1 2 Communications Jammed . | . . . . Distress Signals . | . . . . Times Spotted 31 | . 23 4 4 Peak Tracking Total 4 | . 4 2 3 Tactical Retreats . | . . . . Traps | -11 -10 -10 -9 ------- Run | Yrd Mat Min Mat Traps Triggered 3 | . 3 . . Indirectly . | . . . . Trap Hack Attempts . | . . . . Triggered . | . . . . Disarmed . | . . . . Reprogrammed . | . . . . Reused . | . . . . Traps Extracted . | . . . . Installed . | . . . . Triggered . | . . . . Machines | -11 -10 -10 -9 ---------- Run | Yrd Mat Min Mat Machines Disabled 1 | . . 1 . Max in Single Turn . | . . . . Machines Repaired . | . . . . Machines Dismantled . | . . . . Machines Sabotaged . | . . . . Overloaded Fab Kills . | . . . . Hacking | -11 -10 -10 -9 --------- Run | Yrd Mat Min Mat Machines Accessed 6 | . 6 . . Terminals 4 | . 4 . . Fabricators . | . . . . Repair Stations . | . . . . Recycling Units 2 | . 2 . . Scanalyzers . | . . . . Garrison Access . | . . . . Total Hacks 14 | . 14 . . Successful 12 | . 12 . . Failed 2 | . 2 . . Catastrophic . | . . . . Database Lockouts . | . . . . Manual 11 | . 11 . . Terminals 11 | . 11 . . Fabricators . | . . . . Repair Stations . | . . . . Recycling Units 3 | . 3 . . Scanalyzers . | . . . . Garrison Access . | . . . . Terminal Hacks 6 | . 6 . . Robot Analysis 2 | . 2 . . Alert Level 1 | . 1 . . Unreport Threat 2 | . 2 . . Recall Investigation 1 | . 1 . . Fabricator Hacks . | . . . . Repair Station Hacks . | . . . . Recycling Unit Hacks 2 | . 2 . . Report Inventory 2 | . 2 . . Scanalyzer . | . . . . Garrison Access Hacks . | . . . . Unauthorized Hacks 4 | . 4 . . Terminals 4 | . 4 . . Botnet 4 | . 4 . . Fabricators . | . . . . Repair Stations . | . . . . Recycling Units . | . . . . Scanalyzers . | . . . . Garrison Access . | . . . . Data Cores Recovered . | . . . . Used . | . . . . Hacking Detections 5 | . 5 . . Full Trace Events 2 | . 2 . . Feedback Events . | . . . . Feedback Blocked . | . . . . Robot Schematics Acquired . | . . . . Robots Built . | . . . . Authchips . | . . . . Time . | . . . . Total Robot Build Rating . | . . . . Part Schematics Acquired . | . . . . Parts Built . | . . . . Authchips . | . . . . Time . | . . . . Total Part Build Rating . | . . . . Parts Repaired . | . . . . Time . | . . . . Parts Recycled . | . . . . Recycled Matter . | . . . . Retrieved Matter . | . . . . Retrieved Components . | . . . . Parts Scanalyzed . | . . . . Part Schematics Acquired . | . . . . Parts Damaged . | . . . . Bothacking | -11 -10 -10 -9 ------------ Run | Yrd Mat Min Mat Used RIF Installer . | . . . . Robots Hacked . | . . . . Non-combat . | . . . . Combat . | . . . . Robot Hacks Applied . | . . . . Relay Couplers Released . | . . . . Fabnet Peak Effective % . | . . . . Robots Rewired . | . . . . Allies Hacked . | . . . . Hacks Repelled . | . . . . Allies | -11 -10 -10 -9 -------- Run | Yrd Mat Min Mat Total Allies 4 | . . 4 . Largest Group 4 | . . 4 1 Highest-Rated Group 71 | . . 71 16 Highest-Rated Ally 31 | . . 31 16 Total Orders 1 | . . . 1 STAY 1 | . . . 1 Ally Attacks 12 | . . 9 3 Total Damage 115 | . . 83 32 Kills 4 | . . 3 1 Allies Corrupted . | . . . . Allies Melted . | . . . . Intel | -11 -10 -10 -9 ------- Run | Yrd Mat Min Mat Robot Analysis Total 2 | . 2 . . Derelict Logs Recovered 1 | . . 1 . Drone Launches . | . . . . Drone Recoveries . | . . . . Exploration | -11 -10 -10 -9 ------------- Run | Yrd Mat Min Mat Turns Passed 2766 | 110 994 1483 179 Spaces Moved 1908 | 66 571 1174 97 Core 2 | 1 1 . . Treads 70 | 25 21 . 24 Legs 1359 | . 112 1174 73 Wheels 477 | 40 437 . . Hover . | . . . . Flight . | . . . . Fastest Speed 50 | 50 95 120 120 Average Speed 119 | 117 116 120 129 Slowest Speed 300 | 160 300 120 160 Overloaded Moves . | . . . . Propulsion Burnouts . | . . . . Robots Hopped . | . . . . Cave-ins Triggered . | . . . . Exploration Rate (%) 44 | 4 68 98 9 Regions Visited 3 Branch Regions 1 Pre-discovered Areas 1 | . . 1 . Known Exits Taken 2 | . 1 1 . Unknown Exits Taken 1 | 1 . . . Scrap Searched 1 | . . 1 . Spaces Dug 6 | . . 1 5 Terrain Destroyed 29 | . . 23 6 Melee . | . . . . Projectile 7 | . . 1 6 AOE 22 | . . 22 . Terrain Rammed . | . . . . Walls Destroyed . | . . . . Machines Disabled . | . . . . Actions | -11 -10 -10 -9 --------- Run | Yrd Mat Min Mat Total 2200 | 88 761 1224 127 Wait 112 | 6 76 23 7 Move 1905 | 65 570 1173 97 Hop . | . . . . Pick Up 25 | 6 12 3 4 Fast Attach 8 | 5 3 . . Attach 10 | 1 5 . 4 Detach . | . . . . Swap 15 | 1 5 8 1 Drop 18 | . 10 5 3 Fire 107 | 4 80 12 11 Melee . | . . . . Ram . | . . . . Kick . | . . . . Crush . | . . . . Escape Stasis . | . . . . Rewire . | . . . . Trap . | . . . . Miscellaneous . | . . . . Route ------- -11/Scrapyard -10/Materials (discovered 4 exits: *Mat x2 / *Min x2) -10/Mines (discovered 3 exits: *Mat x2 / [*Exi]) -9/Materials History --------- Turn | Location | Event 16 | -11/Scrapyard | Discovered new exit (range 15) 111 | -11/Scrapyard | Entered Materials 311 | -10/Materials | Build established: Mutant 487 | -10/Materials | Discovered new exit (range 9) 521 | -10/Materials | Discovered new exit (range 5) 773 | -10/Materials | Discovered new exit (range 16) 908 | -10/Materials | Core integrity fell below 50% 1048 | -10/Materials | Discovered new exit (range 5) 1104 | -10/Materials | Identified exit to Mines 1105 | -10/Materials | Entered Mines 1233 | -10/Mines | Core integrity fell below 20% 1433 | -10/Mines | Learned location of Storage (-9) 2110 | -10/Mines | Assisted by bots powering up and referring to "LRC-V3" 2195 | -10/Mines | Found a damaged Exp. Sensor Array with a note attached 2201 | -10/Mines | Found Prototype Device 2225 | -10/Mines | Received a Mining Laser from a helpful Derelict 2339 | -10/Mines | Discovered new exit (range 6) 2370 | -10/Mines | Identified exit to Materials 2392 | -10/Mines | Discovered exit to Materials (range 7) 2538 | -10/Mines | Deemed a non-threat by the Exiles lab entrance 2540 | -10/Mines | Discovered new exit (range 5) 2588 | -10/Mines | Entered Materials 2588 | -9/Materials | Accompanied by 1 ally 2588 | -9/Materials | Evolved 2 slots: Propulsion x1, Utility x1 2602 | -9/Materials | Identified Exp. Sensor Array 2767 | -9/Materials | Self-destructed Last Messages --------------- 02655_ Acquired Sensor Array. 02659_ Acquired Med. Armor Plating. 02661_ Acquired Grenade Launcher. 02662_ Dropped Grenade Launcher. 02665_ Acquired Med. Armor Plating. 02684_ R-06 Scavenger collects Grenade Launcher. 02703_ W-16 Scout sends out distress signal. 02711_ S-10 Pest destroyed. 02713_ R-06 Scavenger collects Flight Unit. 02717_ S-10 Pest destroyed. 02718_ U-05 Engineer builds a Wall. 02719_ Acquired 20 matter. 02746_ Acquired 9 matter. 02761_ O-16 Technician: "IFF HANDSHAKE FAILED. SECURING TERMINAL." 02766_ O-16 Technician uses terminal to summon reinforcements. 02766_ ALERT: Hostiles spotted, dispatching reinforcements to Terminal M002. 02766_ O-16 Technician locks terminal. Map ----- +----------------------------------------------------+ | ??????????????????????????????????????? #####?? | | ???????????????????????????????????????? #"""### | | ????????????????????????????????????????# # # | | ????????????????????????????????????????# # ] # | | ????????????????????????????????????????# # ] # | | ????????????????????????????????????????# + ] # | | ????????????????????????????????????????# # # | | ????????????????????????????????????????# # # | | ????????????????????????????????????????# ## # | | ????????????????????????????????????????# ######## | | ?????????????????????????? ?????????????# #??????? | | ????????????????????????##+############## #??????? | | ?????????????????????x?? u # #??????? | | ??????????????????x????? #????# % # #??????? | | ???????????????????x???? #????# %# #??????? | | ????????????????????????" #????# #####+#####??? | | ?????????????#????????""" #????# # #??? | | ?????????????# """"""" ###### # #??? | | ?????????????# """"""" # ## + #??? | | ?????????????# """"""" # ## # #??? | | ?????????????#t # ## #= #??? | | ?????????????# # ## # """" #??? | | ?????????????# # ## # """" #??? | | ?????????????? # ## # """" #??? | | ????????????x?? !// o # ## ###########??? | | ???????????????? !// "T"@ ##+### #####????????? | | ???????????????? !// """ #????????????? | | ???????????????? #????????????? | | ????????????? u #????????????? | | ?????????????# ############## #????????????? | | ?????????????#####??????????????# #????????????? | | ????????????????????????????????# #????????????? | | ????????????????????????????????/ #????????????? | | ????????????????????????????????# #????????????? | | ????????????????????????????????# #????????????? | | ????????????????????????????????? #????????????? | | ????????????????????????????????? #????????????? | | ????????????????????????????????? #????????????? | | ????????????????????????????????? #????????????? | | ????????????????????????????????? #????????????? | | ????????????????????????????????? #????????????? | | ????????????????????????????????? ?????????????? | | ?????????????????????????????????????????????????? | | ?????????????????????????????????????????????????? | | ?????????????????????????????????????????????????? | | ?????????????????????????????????????????????????? | | ?????????????????????????????????????????????????? | | ?????????????????????????????????????????????????? | | ?????????????????????????????????????????????????? | | ?????????????????????????????????????????????????? | +----------------------------------------------------+ Best States ------------- Heat Dissipation 28 Energy Generation 10 Energy Capacity 250 Matter Stores 300 Matter Capacity 300 Sight Range 16 Robot Scan Range 14 Terrain Scan Density 10 Armor Coverage 150 Evasion (%) 55 Recoil Reduction 1 Item Schematics ----------------- None Robot Schematics ------------------ None Fabricated ------------ Nothing Alien Tech Used ----------------- None Achievements -------------- None Challenges ------------ None Game ------ Seed CouplerPhaseSpoofer Manual? 0 Play Time 00:25:44 Cumulative 11.2 hours Start 2024.03.02 @ 17:52:14 End 2024.03.02 @ 18:21:53 Sessions 1 Manual Loads 0 Difficulty Rogue Special Mode None Game No. 9 Rogue 9 Adventurer 0 Explorer 0 Win Type - Total 0 Types 0/0/0/0/0/0/0/0/0 Lore% 18 Gallery% 15 Achievement% 17 Wizard Run 0 Options --------- Layout 1 ASCII 0 Keyboard 0 Movement Numpad Keybinds 0 Fullscreen 2 Font 24/Smallcaps Map View 50x35 Zoom Use 0% Tactical HUD 1 Map Filters NONE Filters NONE Steam 0 RUN: 453ea148-2157-4852-bb0c-553091508547